[Event "FTX Crypto Cup MCCT 2022"]
[Site "Miami"]
[Date "2022.08.11"]
[Round "6.6"]
[White "Duda, Jan-Krzysztof"]
[Black "Praggnanandhaa R"]
[Result "1-0"]
[ECO "D00"]
[WhiteElo "2750"]
[BlackElo "2648"]
[Annotator "TA"]
[PlyCount "87"]
[EventDate "2022.08.10"]
[EventType "tourn"]
[EventCountry "USA"]
[SourceTitle "playchess.com"]
[Source "ChessBase"]
[SourceQuality "1"]
[TimeControl "300+3"]

{[%evp 9,87,2,10,-7,0,-32,-30,-25,-17,-25,-33,-45,-28,-69,-87,-76,-79,-76,-79,-82,-83,-86,-57,-81,-60,-53,-41,-50,-47,-52,-63,-53,-68,-51,-17,-60,94,108,120,0,0,0,0,0,0,0,136,139,149,141,134,150,135,137,159,153,219,222,257,257,253,253,377,370,508,505,440,438,440,442,750,744,737,733,700,687,1329,1280,1016,786]} 1. d4 {[%emt 0:00:00]} Nf6 {[%emt 0:00:00]} 2. Bg5 {[%emt 0:00:01]} d5 {[%emt 0:00:12]} 3. Nd2 {[%emt 0:00:07]} c5 {[%emt 0:00:04]} 4. Bxf6 {[%emt 0:00:07]} gxf6 {[%emt 0:00:02]} 5. dxc5 {[%emt 0:00:04]} e5 {[%emt 0:00:30]} 6. e3 {[%emt 0:00:02] D00: 1 d4 d5: Unusual lines.} Bxc5 {[%emt 0:00:02][%cal Bf8c5,Bc5b6,Bb6d8,Bd8e7][%mdl 32] [#]} 7. a3 $146 {[%emt 0:00:09]} ({Predecessor:} 7. Nb3 Nc6 8. Nxc5 Qa5+ 9. Qd2 Qxc5 10. O-O-O Be6 11. Kb1 O-O-O 12. Ne2 d4 13. exd4 {0-1 (54) Boysan,M-Skold,K Varna 1962}) 7... Nc6 {[%emt 0:00:14]} 8. c4 {[%emt 0:00:18] Black has an edge.} d4 {[%emt 0:00:19]} 9. Nb3 {[%emt 0:00:03]} Bb6 {[%emt 0:00:09]} 10. c5 {[%emt 0:00:06] [#]} dxe3 $1 {[%emt 0:00:30]} 11. Qxd8+ {[%emt 0:00:46]} ({Reject} 11. cxb6 exf2+ 12. Kxf2 Qxb6+ 13. Ke1 Be6 $19) (11. fxe3 Qxd1+) 11... Bxd8 {[%emt 0:00:03]} 12. fxe3 {[%emt 0:00:00]} Be7 {[%emt 0:00:19]} 13. Rc1 {[%emt 0:00:02]} Be6 {[%emt 0:00:09]} 14. Bc4 {[%emt 0:00:09]} Rg8 {[%emt 0:00:11]} 15. Kf2 {[%emt 0:00:11]} a5 {[%emt 0:00:02][%cal Ba7a5,Ba5a4][%mdl 32]} 16. Nf3 {[%emt 0:00:06]} a4 {[%emt 0:00:10]} 17. Nbd2 {[%emt 0:00:01]} Ra5 {[%emt 0:00:05]} 18. Ne4 {[%emt 0:00:25]} f5 {[%emt 0:00:15] Hoping for ...Bxc4.} 19. Nd6+ {[%emt 0:00:02]} Bxd6 {[%emt 0:00:03]} 20. cxd6 {[%emt 0:00:00]} Kd7 {[%emt 0:00:09]} 21. Rhd1 {[%emt 0:00:02]} f6 {[%emt 0:00:50]} 22. Nd2 {[%emt 0:00:06][%cal Bf3d2,Bd2e4,Be4c5][%mdl 32]} Rd8 $2 {[%emt 0:00:08]} (22... Bxc4 $1 $15 {stays ahead.} 23. Nxc4 Rb5) 23. b4 $1 $16 {[%emt 0:00:05]} Raa8 {[%emt 0:00:40] [#]} 24. Bb5 {[%emt 0:00:05]} (24. g4 $1 $16) 24... Kxd6 $11 {[%emt 0:00:07]} 25. Ne4+ {[%emt 0:00:03][%mdl 64] Discovered Attack (Double check)} Ke7 {[%emt 0:00:12]} 26. Nc5 {[%emt 0:00:00]} Rxd1 {[%emt 0:00:15]} 27. Rxd1 {[%emt 0:00:02]} Nd8 {[%emt 0:00:12]} (27... f4 $11) 28. Nxe6 $16 {[%emt 0:00:11] White is much more active. Black is on the road to losing.} ({Stronger than} 28. Nxa4 Nf7 29. Rc1 Ra7 $15) ({Much worse is} 28. Bxa4 $6 {[#]} Rxa4 $1 29. Nxa4 Bb3 $11) 28... Kxe6 {[%emt 0:00:07][%mdl 4096] Endgame KRB-KRN} 29. Bd7+ {[%emt 0:00:01][%mdl 64] Deflection} Ke7 {[%emt 0:00:00]} 30. Bxf5 {[%emt 0:00:00] Strongly threatening Rd7+.} Ne6 {[%emt 0:00:01]} 31. Bxh7 {[%emt 0:00:02]} Rc8 {[%emt 0:00:01]} 32. h4 {[%emt 0:00:05][%cal Bh2h4,Bh4h5,Bh5h6,Bh6h7][%mdl 32] Bf5 is the strong threat.} Rc3 {[%emt 0:00:02]} (32... Rh8 $16 {was worth a try.}) 33. Rd3 $18 {[%emt 0:00:01]} Rc2+ {[%emt 0:00:01]} 34. Kf3 {[%emt 0:00:02][%cal Od3d7] Black must now prevent Rd7+!} Rc1 {[%emt 0:00:00]} 35. Bf5 {[%emt 0:00:19]} Nf8 {[%emt 0:00:25]} (35... Rc4 $142 36. g4 Rc7) 36. g4 {[%emt 0:00:04]} Rh1 {[%emt 0:00:03]} 37. h5 {[%emt 0:00:03] White is clearly winning.} Ne6 {[%emt 0:00:01]} 38. Rc3 {[%emt 0:00:17]} Ng5+ {[%emt 0:00:05]} 39. Kg2 {[%emt 0:00:06]} Ra1 {[%emt 0:00:05]} (39... Rh3 $142 40. Rc7+ Kd6 41. Rxb7 Rxe3 42. Rd7+ Kc6) 40. h6 {[%emt 0:00:04]} Ra2+ {[%emt 0:00:01]} 41. Kg3 {[%emt 0:00:01]} Ra1 {[%emt 0:00:00]} 42. h7 {[%emt 0:00:02]} Rh1 {[%emt 0:00:01]} 43. Kg2 {[%emt 0:00:03]} Rh4 {[%emt 0:00:08]} 44. Rc7+ {[%emt 0:00:05] Weighted Error Value: White=0.09 (flawless) /Black=0.29 (precise)} 1-0

[Event "FTX Crypto Cup MCCT 2022"]
[Site "Miami"]
[Date "2022.08.11"]
[Round "7.1"]
[White "Carlsen, Magnus"]
[Black "Praggnanandhaa R"]
[Result "1/2-1/2"]
[ECO "E01"]
[WhiteElo "2864"]
[BlackElo "2648"]
[Annotator "TA"]
[PlyCount "152"]
[EventDate "2022.08.10"]
[EventType "tourn"]
[EventCountry "USA"]
[SourceTitle "playchess.com"]
[Source "ChessBase"]
[SourceQuality "1"]
[TimeControl "900+10"]

{[%evp 15,152,23,6,7,73,0,0,0,12,0,18,18,6,16,8,6,22,20,18,18,11,16,0,0,17,12,18,-4,8,0,0,0,0,-117,-133,-135,-100,-95,-97,-106,-112,-108,-56,-62,-48,-75,-90,-89,-85,-87,-89,-85,-75,-82,-77,-85,-89,-87,-79,-83,-82,-93,-93,-99,-80,-100,-99,-134,-130,-161,-113,-104,-106,-121,-121,-134,-99,-98,-96,-85,-26,-48,-25,-22,-15,-14,-13,-273,-260,-12837,-12,-13,-6,-8,-16,-17,0,0,0,-9,-9,-20,-6,-31,-39,-34,-14,-20,0,0,0,0,0,0,0,0,0,0,0,0,0,0,0,0,0,0,0,0,0,0,0,0,0,0,0,0,0,0,0]} 1. Nf3 {[%emt 0:00:00]} d5 {[%emt 0:00:00]} 2. g3 {[%emt 0:00:20]} c5 {[%emt 0:00:08]} 3. Bg2 {[%emt 0:00:04]} Nc6 {[%emt 0:00:41]} 4. d4 {[%emt 0:00:02]} e6 {[%emt 0:00:00]} 5. O-O {[%emt 0:00:03]} cxd4 {[%emt 0:00:01]} 6. Nxd4 {[%emt 0:00:05]} Bc5 {[%emt 0:00:01]} 7. Nxc6 {[%emt 0:01:47]} bxc6 {[%emt 0:00:02]} 8. c4 {[%emt 0:00:01]} Nf6 {[%emt 0:00:01]} 9. Qc2 $1 {[%emt 0:00:32] 9.Qc2 is better than 9.Nc3. E01: Catalan: Early deviations.} Qe7 {[%emt 0:00:21]} (9... Nd7 $11) 10. Nc3 {[%emt 0:02:13]} (10. cxd5 $16 {Threatens to win with Be3.} cxd5 11. e4) 10... O-O $11 {[%emt 0:00:39]} 11. Bf4 {[%emt 0:00:23]} Ba6 {[%emt 0:01:03]} 12. Na4 {[%emt 0:00:33] [#]} Bb4 $146 {[%emt 0:02:17]} (12... Bxc4 $2 13. Nxc5 Bxe2 14. Rfe1 $18) ({Predecessor:} 12... Bd6 13. Bxd6 Qxd6 14. c5 Qe7 15. Rfd1 Rab8 16. b3 e5 17. a3 Nd7 18. b4 f5 {½-½ (36) Khaustov,V (2203)-Cheremnova,T (2163) Berdsk 2008}) 13. a3 {[%emt 0:00:20]} Bd6 {[%emt 0:00:02]} 14. Bxd6 {[%emt 0:00:01]} Qxd6 {[%emt 0:00:00]} 15. Rfd1 {[%emt 0:00:08]} Qe7 {[%emt 0:00:33]} 16. b3 {[%emt 0:00:36]} Rab8 {[%emt 0:00:22]} 17. Qc3 {[%emt 0:00:19]} dxc4 {[%emt 0:02:24]} 18. bxc4 {[%emt 0:00:12]} c5 {[%emt 0:00:03]} 19. Rd3 {[%emt 0:01:24]} h6 {[%emt 0:00:50]} 20. Rad1 {[%emt 0:00:07]} Rfc8 {[%emt 0:00:27]} 21. Rd6 {[%emt 0:03:10]} Bb7 {[%emt 0:02:10]} 22. Qe3 {[%emt 0:01:10]} Bxg2 {[%emt 0:00:27]} 23. Kxg2 {[%emt 0:00:00]} Qc7 {[%emt 0:01:34]} 24. Nxc5 {[%emt 0:02:34]} Ne8 $1 $17 {[%emt 0:00:55]} (24... Qxc5 $2 25. Rd8+ $3 {[%mdl 512]} Qf8 26. Rxf8+ Kxf8 27. Qxa7 $18) 25. Nxe6 {[%emt 0:00:28]} Qb7+ {[%emt 0:00:52]} ({Of course not} 25... fxe6 $6 26. Rxe6 (26. Qxe6+ Kh8 $15) 26... Nf6 27. c5 $11) 26. R6d5 {[%emt 0:00:03][%cal Bd6d5,Bd5e5,Be5e4][%mdl 32]} fxe6 {[%emt 0:00:15]} 27. Qxe6+ {[%emt 0:00:16]} Kh8 {[%emt 0:00:03]} 28. Qe4 {[%emt 0:00:06]} Qc6 {[%emt 0:01:17]} (28... Qa8 $17 {Hoping for ...Nf6.} 29. R5d4 Qxe4+ 30. Rxe4 Rb2) 29. R1d4 $1 $15 {[%emt 0:00:25]} Qa8 {[%emt 0:00:49]} 30. Re5 {[%emt 0:01:21]} Qxe4+ {[%emt 0:00:10]} 31. Rexe4 {[%emt 0:00:00]} Rc7 {[%emt 0:00:10] Inhibits Re7.} 32. Re5 {[%emt 0:00:08]} Nf6 {[%emt 0:00:16]} 33. f3 {[%emt 0:00:25]} Rbc8 {[%emt 0:00:26]} 34. Ra5 {[%emt 0:00:08]} Nd7 {[%emt 0:00:01]} 35. Kf2 {[%emt 0:00:43]} Nc5 {[%emt 0:00:15] Strongly threatening ...Nb3.} 36. Rd5 {[%emt 0:00:03]} a6 {[%emt 0:00:27]} 37. g4 {[%emt 0:00:02]} Rc6 {[%emt 0:00:03]} 38. h4 {[%emt 0:00:06]} Kg8 {[%emt 0:00:19]} 39. Rf5 {[%emt 0:00:14]} R8c7 {[%emt 0:00:42]} 40. h5 {[%emt 0:00:10]} Nb7 {[%emt 0:00:11][%csl LRa5,LRc4]} 41. Rad5 {[%emt 0:00:52]} Rxc4 {[%emt 0:00:07]} 42. Rfe5 {[%emt 0:00:01]} R4c5 {[%emt 0:00:16]} ({Better is} 42... R7c5 $1 $19 43. Kf1 Rc1+ 44. Kf2 R1c3 45. Rxc5 Nxc5) 43. Rxc5 $17 {[%emt 0:00:05]} Nxc5 {[%emt 0:00:04][%mdl 4096] Endgame KRN-KR} 44. f4 {[%emt 0:00:13]} Kf7 {[%emt 0:00:03]} 45. Kf3 {[%emt 0:00:06]} Nb7 {[%emt 0:00:16]} 46. Rd5 {[%emt 0:00:10]} Ke6 {[%emt 0:00:16]} 47. Re5+ {[%emt 0:00:03]} Kd6 {[%emt 0:00:04]} (47... Kf6 $17) 48. e3 {[%emt 0:00:10]} Nc5 {[%emt 0:00:26]} 49. g5 {[%emt 0:00:05]} Ne6 {[%emt 0:00:03]} 50. gxh6 {[%emt 0:00:07]} gxh6 {[%emt 0:00:02]} 51. Rf5 {[%emt 0:00:07][%mdl 8192] [#]} (51. Kg4 $1 $11) 51... Ke7 $1 $19 {[%emt 0:00:06]} 52. Kg4 $2 {[%emt 0:00:28] [#]} (52. Rd5) 52... Rc3 $2 {[%emt 0:00:09]} ({Black should try} 52... Rc5 $1 $19 53. e4 Rxf5 54. Kxf5 Nc5) 53. Re5 $1 $11 {[%emt 0:00:04]} Kf6 {[%emt 0:00:21]} (53... Rxa3 $2 54. f5 $18) 54. Rf5+ {[%emt 0:00:01]} Kg7 {[%emt 0:00:20]} 55. Re5 {[%emt 0:00:00]} Kf7 {[%emt 0:00:12]} 56. Rf5+ {[%emt 0:00:03]} Ke7 {[%emt 0:00:08]} 57. Re5 {[%emt 0:00:01] Black must now prevent f5.} Rc5 {[%emt 0:00:11]} (57... Rxa3 $2 58. f5 $18) 58. Re4 {[%emt 0:00:09]} Kf6 {[%emt 0:00:07] Inhibits f5.} 59. Ra4 {[%emt 0:00:08]} a5 {[%emt 0:00:08]} 60. e4 {[%emt 0:00:05]} Nc7 {[%emt 0:00:14]} 61. Rd4 {[%emt 0:00:09] The position is equal.} Ne6 {[%emt 0:00:14]} 62. Rd7 {[%emt 0:00:20]} Nxf4 {[%emt 0:00:11]} 63. Kxf4 {[%emt 0:00:00] And now Rd6+ would win.} Rxh5 {[%emt 0:00:01] KR-KR} 64. Rd6+ {[%emt 0:00:02]} Ke7 {[%emt 0:00:02]} 65. Ra6 {[%emt 0:00:01]} Rh4+ {[%emt 0:00:16]} 66. Ke5 {[%emt 0:00:03]} Rh5+ {[%emt 0:00:01]} 67. Kd4 {[%emt 0:00:01]} Rb5 {[%emt 0:00:08]} 68. e5 {[%emt 0:00:39]} h5 {[%emt 0:00:12]} 69. Rh6 {[%emt 0:00:14]} Rb3 {[%emt 0:00:08]} 70. a4 {[%emt 0:00:01]} h4 {[%emt 0:00:07]} 71. Kd5 {[%emt 0:00:07] Rh7+ is the strong threat.} Rd3+ {[%emt 0:00:02]} 72. Ke4 {[%emt 0:00:01]} Ra3 {[%emt 0:00:10]} 73. Kf5 {[%emt 0:00:04]} Rf3+ {[%emt 0:00:03]} 74. Ke4 {[%emt 0:00:02]} Ra3 {[%emt 0:00:01]} 75. Kf5 {[%emt 0:00:01]} Rf3+ {[%emt 0:00:02]} 76. Ke4 {[%emt 0:00:00]} Ra3 {[%emt 0:00:01] Weighted Error Value: White=0.33/Black=0.20 (precise)} 1/2-1/2

[Event "FTX Crypto Cup MCCT 2022"]
[Site "Miami"]
[Date "2022.08.11"]
[Round "7.1"]
[White "Aronian, Levon"]
[Black "Firouzja, Alireza"]
[Result "1/2-1/2"]
[ECO "A28"]
[WhiteElo "2775"]
[BlackElo "2793"]
[Annotator "TA"]
[PlyCount "98"]
[EventDate "2022.08.10"]
[EventType "tourn"]
[EventCountry "USA"]
[SourceTitle "playchess.com"]
[Source "ChessBase"]
[SourceQuality "1"]
[TimeControl "900+10"]

{[%evp 9,98,9,7,-2,0,-14,8,-15,-13,-16,-7,-19,-18,-21,-19,-17,-15,-11,-11,-13,-4,-14,-6,-14,0,-54,-47,-62,-67,-70,-48,-62,-43,-46,-54,-51,-20,-36,-45,-34,-8,-12,-8,-39,0,0,0,0,0,0,0,0,0,0,58,8,61,0,0,0,0,0,0,-8,-8,-8,-8,-298,-298,-298,-298,-298,-298,-298,-298,-313,0,0,0,0,0,-17,0,0,0,0,0,0,0,0,0]} 1. c4 {[%emt 0:00:00]} e5 {[%emt 0:00:00]} 2. Nc3 {[%emt 0:00:03]} Nf6 {[%emt 0:00:02]} 3. Nf3 {[%emt 0:00:01]} Nc6 {[%emt 0:00:01]} 4. e4 {[%emt 0:00:02]} Bb4 {[%emt 0:00:05]} 5. d3 {[%emt 0:00:01]} d6 {[%emt 0:00:03]} 6. Be2 {[%emt 0:00:01] A28: English Opening: Four Knights Variation.} Bc5 {[%emt 0:00:32] 6...Bg4 is the modern continuation.} 7. O-O {[%emt 0:00:02]} Bg4 {[%emt 0:00:09] [#]} 8. Kh1 $146 {[%emt 0:00:45][%cal Of3e5]} ({Predecessor:} 8. Rb1 a6 9. b4 Ba7 10. Kh1 h6 11. h3 Bxf3 12. Bxf3 Nd4 13. g3 Nxf3 14. Qxf3 {0-1 (39) Dubov,D (2714)-Abasov,N (2652) Struga 2021}) 8... O-O {[%emt 0:00:43]} 9. Be3 {[%emt 0:00:57]} a5 {[%emt 0:01:24]} 10. h3 {[%emt 0:01:47]} Bxf3 {[%emt 0:00:35]} 11. Bxf3 {[%emt 0:00:00]} Nd4 {[%emt 0:00:01]} 12. g3 {[%emt 0:00:19]} Ne6 {[%emt 0:00:33]} 13. Bd2 {[%emt 0:00:07]} c6 {[%emt 0:00:52]} 14. Bg2 {[%emt 0:00:06]} Nd7 {[%emt 0:00:15]} 15. f4 {[%emt 0:00:27]} exf4 {[%emt 0:00:02]} 16. gxf4 {[%emt 0:00:01]} f5 {[%emt 0:00:01]} 17. exf5 {[%emt 0:00:29]} ({White should try} 17. Ne2 $11) 17... Nd4 $1 $15 {[%emt 0:00:01]} 18. Ne4 {[%emt 0:00:33][%cal Of5f6]} Nxf5 {[%emt 0:00:06] Pair of Knights!} 19. Qg4 {[%emt 0:00:02]} Bd4 {[%emt 0:00:14]} 20. Rae1 {[%emt 0:00:16]} Nc5 {[%emt 0:00:21]} (20... Bxb2 21. Rb1 Bd4 22. Rxb7 $11) 21. Nxc5 {[%emt 0:00:52]} dxc5 {[%emt 0:00:01]} 22. Be4 {[%emt 0:00:02]} Qf6 {[%emt 0:00:52]} 23. Bc3 {[%emt 0:00:55]} Bxc3 {[%emt 0:00:50]} (23... Rad8 {seems wilder.} 24. Bxa5 Ra8 25. Bc3 Bxc3 26. bxc3 Rxa2 27. Bxf5 Qxf5 28. Re7 Qxg4 29. hxg4 Rd2) 24. bxc3 {[%emt 0:00:01]} g6 {[%emt 0:00:00]} 25. Bxf5 {[%emt 0:00:57]} Qxf5 {[%emt 0:00:01]} 26. Re7 {[%emt 0:00:01]} Qxg4 {[%emt 0:01:29]} (26... Qxd3 {leads to mate.} 27. Qe6+ Kh8 28. Qe5+) (26... b5 {is more complex.} 27. Qh4 Rf7 28. Rxf7 Qxf7 29. Re1 Re8) 27. hxg4 {[%emt 0:00:02]} Rf7 {[%emt 0:00:00]} 28. Rxf7 {[%emt 0:00:22]} Kxf7 $11 {[%emt 0:00:01][%mdl 4096] Endgame KR-KR} 29. Rb1 {[%emt 0:00:02] Inhibits b5.} Rb8 {[%emt 0:00:44]} 30. a4 {[%emt 0:00:03] Prevents b5.} h5 {[%emt 0:00:23]} 31. Kg2 {[%emt 0:00:01]} Kf6 {[%emt 0:00:50]} (31... hxg4 $11 32. Kg3 Rd8) 32. Kf3 {[%emt 0:00:25]} (32. g5+ $1 $14 Ke6 33. d4) 32... Rd8 {[%emt 0:01:58]} (32... hxg4+ $11 33. Kxg4 Ke6) 33. Rd1 {[%emt 0:00:02]} (33. g5+ $1 $14 Ke6 34. Ke4) 33... hxg4+ {[%emt 0:00:39]} 34. Kxg4 {[%emt 0:00:03]} Re8 {[%emt 0:00:00]} 35. Rb1 {[%emt 0:00:09]} Re7 {[%emt 0:00:10]} 36. d4 {[%emt 0:00:04]} cxd4 {[%emt 0:00:31]} 37. cxd4 {[%emt 0:00:00]} Re4 {[%emt 0:00:01]} 38. d5 {[%emt 0:00:31][%mdl 8192]} (38. Rxb7 $11 {and White has nothing to worry.} Rxd4 39. Ra7) 38... g5 $1 $19 {[%emt 0:00:38]} ({Weaker is} 38... Rxc4 39. Rxb7 cxd5 40. Rb6+ Kf7 41. Rb7+ Kf8 42. Kg5 $11) 39. Rxb7 {[%emt 0:00:03]} Rxf4+ {[%emt 0:00:08]} 40. Kg3 {[%emt 0:00:03] [#]} cxd5 {[%emt 0:00:01]} ({And not} 40... Rxc4 41. dxc6 Rxa4 42. Rb5 $11) 41. cxd5 {[%emt 0:00:06]} Rxa4 {[%emt 0:00:05]} 42. d6 {[%emt 0:00:15] [#]} Rd4 $2 {[%emt 0:01:09]} (42... Ke6 $1 $19 43. d7 Ke7 44. d8=R+ Kxd8) 43. Ra7 $11 {[%emt 0:00:09] The position is equal.} a4 {[%emt 0:00:17]} 44. d7 {[%emt 0:00:07]} Ke7 {[%emt 0:00:04]} 45. Kf3 {[%emt 0:00:02]} Rxd7 {[%emt 0:00:18]} 46. Rxa4 {[%emt 0:00:04]} g4+ {[%emt 0:00:03]} 47. Kxg4 {[%emt 0:00:02]} Kd6 {[%emt 0:00:02]} 48. Rd4+ {[%emt 0:00:02]} Kc6 {[%emt 0:00:01]} 49. Rxd7 {[%emt 0:00:00]} Kxd7 {[%emt 0:00:00] Whites escaped into a draw.  Weighted Error Value: White=0.23 (precise) /Black=0.18 (very precise)} 1/2-1/2

[Event "FTX Crypto Cup MCCT 2022"]
[Site "Miami"]
[Date "2022.08.11"]
[Round "7.1"]
[White "Duda, Jan-Krzysztof"]
[Black "Giri, Anish"]
[Result "1-0"]
[ECO "C67"]
[WhiteElo "2750"]
[BlackElo "2760"]
[Annotator "TA"]
[PlyCount "107"]
[EventDate "2022.08.10"]
[EventType "tourn"]
[EventCountry "USA"]
[SourceTitle "playchess.com"]
[Source "ChessBase"]
[SourceQuality "1"]
[TimeControl "900+10"]

{[%evp 18,107,15,13,23,10,14,14,8,0,0,0,0,0,0,0,0,0,0,0,0,0,0,0,0,0,0,0,0,0,22,22,49,49,57,45,45,60,58,28,28,24,32,33,29,31,62,30,33,27,354,496,496,496,500,451,404,404,29966,29966,29963,29964,29959,3604,3604,2095,580,8,29971,29973,29970,29971,29974,29975,29975,29976,29979,29980,29981,29979,29978,29979,29982,29983,29983,29984,29984,29985,29985,29986,29986,29986]} 1. e4 {[%emt 0:00:00]} e5 {[%emt 0:00:00]} 2. Nf3 {[%emt 0:00:02]} Nc6 {[%emt 0:00:01]} 3. Bb5 {[%emt 0:00:02]} Nf6 {[%emt 0:00:02]} 4. O-O {[%emt 0:00:51]} Nxe4 {[%emt 0:00:02]} 5. d4 {[%emt 0:00:01]} Nd6 {[%emt 0:00:01]} 6. Bxc6 {[%emt 0:00:00]} dxc6 {[%emt 0:00:00]} 7. dxe5 {[%emt 0:00:01]} Nf5 {[%emt 0:00:00]} 8. Qxd8+ {[%emt 0:00:00]} Kxd8 {[%emt 0:00:00]} 9. h3 {[%emt 0:00:01]} Ke8 {[%emt 0:00:05]} 10. Nc3 {[%emt 0:00:05]} h5 {[%emt 0:00:05] C67: Ruy Lopez: Berlin Defence: 4 0-0 Nxe4.} 11. Bf4 {[%emt 0:00:17]} Be7 {[%emt 0:00:03]} 12. Ne4 {[%emt 0:00:09]} Be6 {[%emt 0:01:50] The position is equal.} 13. Rfe1 {[%emt 0:00:42]} Rd8 {[%emt 0:00:17] [#]} 14. Nfg5 $146 {[%emt 0:00:49]} ({Predecessor:} 14. c3 h4 15. Nfg5 Rh6 16. Nxe6 Rxe6 17. g4 hxg3 18. fxg3 c5 19. Re2 Rd3 20. h4 {1-0 (40) Duda,J (2730)-Nakamura,H (2745) Chess.com INT 2019}) 14... Nd4 {[%emt 0:03:35]} 15. Nxe6 {[%emt 0:01:33]} Nxe6 {[%emt 0:00:07]} 16. Be3 {[%emt 0:00:08]} h4 {[%emt 0:00:07]} 17. Rad1 {[%emt 0:00:23]} ({Not} 17. Bxa7 $2 b6 18. Rad1 Ra8 19. Bxb6 cxb6 $19) 17... Rxd1 {[%emt 0:00:47]} 18. Rxd1 {[%emt 0:00:00]} Rh5 {[%emt 0:02:41]} 19. f4 {[%emt 0:00:03]} f5 {[%emt 0:00:18]} 20. g4 {[%emt 0:00:33]} hxg3 $1 {[%emt 0:00:01]} 21. Nxg3 {[%emt 0:00:01]} Rxh3 {[%emt 0:00:00]} 22. Kg2 {[%emt 0:00:01]} Rh8 {[%emt 0:01:16]} ({Don't play} 22... Rh4 23. Nxf5 Rh5 24. Ng3 $14) 23. Nxf5 {[%emt 0:00:03]} g6 {[%emt 0:00:11]} 24. Nd4 {[%emt 0:02:00]} Nxd4 {[%emt 0:01:52]} 25. Bxd4 $11 {[%emt 0:01:37][%mdl 4096] Endgame KRB-KRB} Rf8 {[%emt 0:00:38]} 26. Be3 {[%emt 0:01:19]} ({But not} 26. Bxa7 $6 Rxf4 27. Bd4 Kf7 $11) 26... g5 $1 {[%emt 0:00:05]} 27. fxg5 {[%emt 0:00:01]} Rg8 $1 {[%emt 0:00:01]} 28. Kf3 {[%emt 0:00:26] Threatens to win with Ke4.} (28. g6 $5) 28... Bxg5 {[%emt 0:00:03]} 29. Bxa7 {[%emt 0:00:33]} b6 $1 {[%emt 0:00:20] Inhibits Bc5.} 30. a4 {[%emt 0:04:11][%cal Oa4a5]} Rf8+ {[%emt 0:02:15]} 31. Kg4 {[%emt 0:00:12]} Be7 {[%emt 0:01:45]} 32. Bb8 {[%emt 0:00:47]} (32. a5 $5 {[%cal Ra5a6]} Rg8+ 33. Kf3 $16) 32... Bd8 {[%emt 0:01:32]} 33. b4 {[%emt 0:00:34][%cal Bb2b4,Bb4a5][%mdl 32]} Rf2 $2 {[%emt 0:00:01][%mdl 8192] White now steadily converts the win.} (33... Rg8+ $11 34. Kf5 Rg5+ 35. Kf4 Rh5) 34. a5 $1 $18 {[%emt 0:01:14]} bxa5 {[%emt 0:00:01]} 35. bxa5 {[%emt 0:00:00] Black must now prevent a6.} Rxc2 {[%emt 0:00:01]} 36. Kf5 {[%emt 0:00:25] Strongly threatening Ra1.} Rb2 {[%emt 0:00:37]} 37. Ba7 {[%emt 0:00:10] Ke6 is the strong threat.} Ra2 {[%emt 0:00:07]} (37... c5 $18 38. Bxc5 Be7) 38. Ke6 {[%emt 0:00:11]} Rxa5 {[%emt 0:00:03] [#]} 39. Rh1 $1 {[%emt 0:00:03][%cal Rh1h8]} Kf8 {[%emt 0:00:25]} 40. Rh8+ {[%emt 0:01:04]} (40. Be3 $142 Be7 41. Rg1 Rxe5+ 42. Kxe5 Kf7 43. Rf1+ Kg6 44. Ke6 Bd6 45. Rg1+ Kh5 46. Bg5) 40... Kg7 {[%emt 0:00:01]} 41. Rxd8 {[%emt 0:00:01] White threatens Rd7+ and mate.} Rxa7 {[%emt 0:00:01] [#] KR-KR} 42. Kd7 $2 {[%emt 0:00:00]} (42. Rd7+ $1 $18 Kg6 43. Rd3) 42... Ra5 $2 {[%emt 0:00:41][%mdl 8192] [#]} (42... c5 $11) 43. e6 $1 {[%emt 0:00:02][%cal Be5e6,Be6e7][%mdl 32] White mates.} Rd5+ {[%emt 0:00:04]} 44. Kxc7 {[%emt 0:00:03]} Re5 {[%emt 0:00:09]} 45. Kd7 {[%emt 0:00:01]} Rd5+ {[%emt 0:00:04]} 46. Ke8 {[%emt 0:00:07]} Ra5 {[%emt 0:00:21]} 47. e7 {[%emt 0:00:10]} Ra7 {[%emt 0:00:12]} 48. Rd1 {[%emt 0:00:14]} Kf6 {[%emt 0:00:06]} 49. Rd6+ {[%emt 0:00:15]} Kg7 {[%emt 0:00:08]} 50. Re6 {[%emt 0:00:24]} c5 {[%emt 0:00:17]} 51. Kd8 {[%emt 0:00:04]} Ra8+ {[%emt 0:00:04]} 52. Kd7 {[%emt 0:00:01]} Ra7+ {[%emt 0:00:04]} 53. Kd6 {[%emt 0:00:01]} Ra6+ {[%emt 0:00:13]} 54. Kd5 {[%emt 0:00:02] Weighted Error Value: White=0.16 (very precise) /Black=0.34} 1-0